[Event "Early-Titled-Tuesday-Blitz-February-27-2024"]
[Site "Chess.com"]
[Date "2024.02.27"]
[Round "4"]
[White "HansOnTwitch"]
[Black "AttackSparrow"]
[Result "1-0"]
[WhiteElo "3149"]
[BlackElo "2639"]
[TimeControl "180+1"]
[EndTime "8:35:45 PST"]
[Termination "HansOnTwitch won by resignation"]

1. e4 {[%clk 0:03:00.9]} 1... e5 {[%clk 0:02:59.9]} 2. Nf3 {[%clk 0:03:00.9]}
2... Nc6 {[%clk 0:03:00.5]} 3. Bc4 {[%clk 0:02:59.9]} 3... Nf6 {[%clk
0:03:00.3]} 4. d3 {[%clk 0:02:59.1]} 4... Be7 {[%clk 0:03:00.6]} 5. O-O {[%clk
0:02:58.8]} 5... O-O {[%clk 0:03:00.6]} 6. Re1 {[%clk 0:02:59.3]} 6... d6 {[%clk
0:03:00.7]} 7. a4 {[%clk 0:02:59.7]} 7... Na5 {[%clk 0:03:01.1]} 8. Ba2 {[%clk
0:02:59.5]} 8... c5 {[%clk 0:03:01.8]} 9. c3 {[%clk 0:02:59.6]} 9... Nc6 {[%clk
0:03:02.4]} 10. Na3 {[%clk 0:02:59.7]} 10... h6 {[%clk 0:03:01.6]} 11. h3 {[%clk
0:02:59.9]} 11... a6 {[%clk 0:02:58]} 12. Nc2 {[%clk 0:02:58.9]} 12... Be6
{[%clk 0:02:51.7]} 13. Bxe6 {[%clk 0:02:56.8]} 13... fxe6 {[%clk 0:02:52.6]} 14.
b4 {[%clk 0:02:54.9]} 14... cxb4 {[%clk 0:02:37.1]} 15. Nxb4 {[%clk 0:02:54.8]}
15... d5 {[%clk 0:02:38]} 16. Nxc6 {[%clk 0:02:54.7]} 16... bxc6 {[%clk
0:02:37.7]} 17. Nxe5 {[%clk 0:02:55.6]} 17... Qc7 {[%clk 0:02:31.2]} 18. Ng6
{[%clk 0:02:55.2]} 18... Rf7 {[%clk 0:02:30.7]} 19. e5 {[%clk 0:02:55.6]} 19...
Nh7 {[%clk 0:02:28.6]} 20. Qg4 {[%clk 0:02:55.8]} 20... Qd7 {[%clk 0:02:26.2]}
21. Bxh6 {[%clk 0:02:55]} 21... Bc5 {[%clk 0:02:19.3]} 22. d4 {[%clk 0:02:54.9]}
22... gxh6 {[%clk 0:02:15.3]} 23. dxc5 {[%clk 0:02:49.9]} 23... Rg7 {[%clk
0:02:13.5]} 24. Re3 {[%clk 0:02:48]} 24... Nf8 {[%clk 0:02:07.8]} 25. Nxf8
{[%clk 0:02:39.6]} 25... Rxf8 {[%clk 0:02:08.7]} 26. Qh4 {[%clk 0:02:32.5]}
26... Qf7 {[%clk 0:01:55.1]} 27. Rf1 {[%clk 0:02:31.6]} 27... Qf4 {[%clk
0:01:52.2]} 28. Qxf4 {[%clk 0:02:30.6]} 28... Rxf4 {[%clk 0:01:53.1]} 29. Rb1
{[%clk 0:02:30.6]} 29... Rxa4 {[%clk 0:01:24.8]} 30. Rb6 {[%clk 0:02:30.2]}
30... Rc7 {[%clk 0:01:25.5]} 31. Rg3+ {[%clk 0:02:30.6]} 31... Kf7 {[%clk
0:01:24.7]} 32. Rb8 {[%clk 0:02:29.9]} 32... Rf4 {[%clk 0:01:08.3]} 33. Rgg8
{[%clk 0:02:28.2]} 33... Rc4 {[%clk 0:00:57.9]} 34. Rbf8+ {[%clk 0:02:21.6]}
34... Ke7 {[%clk 0:00:57.8]} 35. Rf6 {[%clk 0:02:22.5]} 35... Rd7 {[%clk
0:00:55.1]} 36. Rxh6 {[%clk 0:02:18.8]} 36... Rf4 {[%clk 0:00:51.9]} 37. Rh7+
{[%clk 0:02:12.6]} 37... Rf7 {[%clk 0:00:52.2]} 38. Rhh8 {[%clk 0:02:13.5]}
38... Rf5 {[%clk 0:00:47.7]} 39. f4 {[%clk 0:02:11.1]} 39... d4 {[%clk
0:00:44.9]} 40. g4 {[%clk 0:02:06.2]} 40... Rf7 {[%clk 0:00:43.2]} 1-0

[Event "Early-Titled-Tuesday-Blitz-February-27-2024"]
[Site "Chess.com"]
[Date "2024.02.27"]
[Round "4"]
[White "bazar-wokzal"]
[Black "szachmistrz2500"]
[Result "1-0"]
[WhiteElo "2678"]
[BlackElo "2414"]
[TimeControl "180+1"]
[EndTime "8:35:51 PST"]
[Termination "bazar-wokzal won by resignation"]

1. e4 {[%clk 0:03:00.9]} 1... c5 {[%clk 0:02:59.3]} 2. c3 {[%clk 0:02:53.9]}
2... Nf6 {[%clk 0:02:58.4]} 3. e5 {[%clk 0:02:53.8]} 3... Nd5 {[%clk 0:02:58.6]}
4. d4 {[%clk 0:02:54.4]} 4... cxd4 {[%clk 0:02:58.8]} 5. cxd4 {[%clk 0:02:55.3]}
5... d6 {[%clk 0:02:59.3]} 6. Bc4 {[%clk 0:02:55.1]} 6... e6 {[%clk 0:02:47.2]}
7. Nf3 {[%clk 0:02:54.2]} 7... Nc6 {[%clk 0:02:43.5]} 8. O-O {[%clk 0:02:53.9]}
8... Be7 {[%clk 0:02:43.2]} 9. Qe2 {[%clk 0:02:53.8]} 9... O-O {[%clk
0:02:39.2]} 10. Qe4 {[%clk 0:02:53.9]} 10... Ndb4 {[%clk 0:02:25.1]} 11. Bb3
{[%clk 0:02:53.1]} 11... a5 {[%clk 0:02:17.3]} 12. Nc3 {[%clk 0:02:33.8]} 12...
Re8 {[%clk 0:02:03.3]} 13. a3 {[%clk 0:02:33.2]} 13... Na6 {[%clk 0:02:01.8]}
14. Bc2 {[%clk 0:02:32.2]} 14... g6 {[%clk 0:02:01.5]} 15. Bh6 {[%clk
0:02:30.8]} 15... Bd7 {[%clk 0:01:52.7]} 16. h4 {[%clk 0:02:28]} 16... b5 {[%clk
0:01:44.6]} 17. Qf4 {[%clk 0:02:16]} 17... b4 {[%clk 0:01:35.5]} 18. Ne4 {[%clk
0:02:09.9]} 18... dxe5 {[%clk 0:01:20.9]} 19. dxe5 {[%clk 0:02:08.7]} 19... Nc5
{[%clk 0:01:21.2]} 20. Nfg5 {[%clk 0:02:00.4]} 20... Rf8 {[%clk 0:01:18.5]} 21.
Nxc5 {[%clk 0:01:40.4]} 21... Bxc5 {[%clk 0:01:15.4]} 22. Rad1 {[%clk
0:01:40.1]} 22... Ra7 {[%clk 0:01:07]} 23. Ba4 {[%clk 0:01:32.3]} 23... Rc7
{[%clk 0:00:50]} 24. Bxc6 {[%clk 0:01:25.1]} 24... Rxc6 {[%clk 0:00:45.4]} 25.
Rxd7 {[%clk 0:01:24.3]} 25... Qxd7 {[%clk 0:00:45.5]} 26. Qf6 {[%clk 0:01:24.5]}
1-0

[Event "Early-Titled-Tuesday-Blitz-February-27-2024"]
[Site "Chess.com"]
[Date "2024.02.27"]
[Round "4"]
[White "GilbertoHernandezAmura"]
[Black "Klavdia_Nik"]
[Result "1-0"]
[WhiteElo "2472"]
[BlackElo "2131"]
[TimeControl "180+1"]
[EndTime "8:35:51 PST"]
[Termination "GilbertoHernandezAmura won by resignation"]

1. e4 {[%clk 0:03:00.9]} 1... c5 {[%clk 0:02:58.5]} 2. Nc3 {[%clk 0:03:01.4]}
2... Nc6 {[%clk 0:02:57.7]} 3. Bc4 {[%clk 0:03:01.5]} 3... g6 {[%clk 0:02:35.1]}
4. f4 {[%clk 0:02:49.4]} 4... d6 {[%clk 0:02:30.3]} 5. Nf3 {[%clk 0:02:46.2]}
5... Bg7 {[%clk 0:02:30.4]} 6. O-O {[%clk 0:02:43.3]} 6... e6 {[%clk 0:02:30.3]}
7. f5 {[%clk 0:02:36.8]} 7... exf5 {[%clk 0:02:22]} 8. d3 {[%clk 0:01:54.6]}
8... Nge7 {[%clk 0:02:12.3]} 9. Qe1 {[%clk 0:01:46.7]} 9... O-O {[%clk 0:02:07]}
10. Qh4 {[%clk 0:01:46.8]} 10... Na5 {[%clk 0:01:46.6]} 11. Bg5 {[%clk
0:01:44.3]} 11... Re8 {[%clk 0:01:18.8]} 12. Nd5 {[%clk 0:01:43.9]} 12... Nxc4
{[%clk 0:01:11.2]} 13. Nxe7+ {[%clk 0:01:29.4]} 13... Rxe7 {[%clk 0:00:58.6]}
14. Bxe7 {[%clk 0:01:29.2]} 14... Qb6 {[%clk 0:00:45]} 15. dxc4 {[%clk 0:01:27]}
15... Qxb2 {[%clk 0:00:39.1]} 16. Bxd6 {[%clk 0:01:18.3]} 16... Qxc2 {[%clk
0:00:35.6]} 17. Qd8+ {[%clk 0:01:17.1]} 1-0

[Event "Early-Titled-Tuesday-Blitz-February-27-2024"]
[Site "Chess.com"]
[Date "2024.02.27"]
[Round "4"]
[White "HATilay"]
[Black "elchacal664"]
[Result "1-0"]
[WhiteElo "2627"]
[BlackElo "2426"]
[TimeControl "180+1"]
[EndTime "8:35:52 PST"]
[Termination "HATilay won by resignation"]

1. e4 {[%clk 0:03:00.9]} 1... d5 {[%clk 0:02:58.3]} 2. exd5 {[%clk 0:03:00.6]}
2... Qxd5 {[%clk 0:02:59.2]} 3. Nc3 {[%clk 0:03:00.6]} 3... Qd6 {[%clk
0:02:59.7]} 4. d4 {[%clk 0:02:58.6]} 4... a6 {[%clk 0:02:59.9]} 5. g3 {[%clk
0:02:53.7]} 5... b5 {[%clk 0:02:59.9]} 6. Bg2 {[%clk 0:02:52.2]} 6... c6 {[%clk
0:02:53.4]} 7. Bf4 {[%clk 0:02:50.9]} 7... Qd7 {[%clk 0:02:52]} 8. Qf3 {[%clk
0:02:42]} 8... Bb7 {[%clk 0:02:47.1]} 9. O-O-O {[%clk 0:02:41.3]} 9... e6 {[%clk
0:02:46.7]} 10. Nh3 {[%clk 0:02:31.4]} 10... Nf6 {[%clk 0:02:45.7]} 11. Rhe1
{[%clk 0:02:28.7]} 11... Be7 {[%clk 0:02:45]} 12. g4 {[%clk 0:02:27.5]} 12...
O-O {[%clk 0:02:43]} 13. g5 {[%clk 0:02:27.6]} 13... Nd5 {[%clk 0:02:43]} 14.
Ne4 {[%clk 0:02:26.6]} 14... Nxf4 {[%clk 0:02:28.9]} 15. Qxf4 {[%clk 0:02:12.6]}
15... a5 {[%clk 0:02:15.7]} 16. Nf6+ {[%clk 0:02:03.1]} 16... gxf6 {[%clk
0:02:14.2]} 17. gxf6 {[%clk 0:02:03.7]} 17... Kh8 {[%clk 0:02:14.2]} 18. fxe7
{[%clk 0:02:03.1]} 18... Qxe7 {[%clk 0:02:13.3]} 19. Be4 {[%clk 0:02:03.4]}
19... Rg8 {[%clk 0:01:57.1]} 20. Rg1 {[%clk 0:01:35.6]} 20... Nd7 {[%clk
0:01:55.6]} 21. Bxh7 {[%clk 0:01:16.7]} 21... Kxh7 {[%clk 0:01:48.7]} 22. Ng5+
{[%clk 0:01:16.4]} 22... Rxg5 {[%clk 0:01:47.5]} 23. Rxg5 {[%clk 0:01:16.4]}
23... Qf6 {[%clk 0:01:37.9]} 24. Rh5+ {[%clk 0:00:58.7]} 24... Kg7 {[%clk
0:01:37.2]} 25. Rg1+ {[%clk 0:00:58.6]} 25... Kf8 {[%clk 0:01:37.3]} 26. Qd6+
{[%clk 0:00:58.6]} 1-0

[Event "Early-Titled-Tuesday-Blitz-February-27-2024"]
[Site "Chess.com"]
[Date "2024.02.27"]
[Round "4"]
[White "Firouzja2003"]
[Black "Zavgorodniy_Sergiy"]
[Result "1-0"]
[WhiteElo "3076"]
[BlackElo "2634"]
[TimeControl "180+1"]
[EndTime "8:35:53 PST"]
[Termination "Firouzja2003 won by checkmate"]

1. d4 {[%clk 0:02:51.7]} 1... d5 {[%clk 0:03:00.1]} 2. e3 {[%clk 0:02:52.6]}
2... Nf6 {[%clk 0:03:00.1]} 3. Ne2 {[%clk 0:02:52.8]} 3... e6 {[%clk 0:03:00]}
4. g3 {[%clk 0:02:52.6]} 4... Be7 {[%clk 0:02:59.4]} 5. Bg2 {[%clk 0:02:53.3]}
5... O-O {[%clk 0:02:59.8]} 6. O-O {[%clk 0:02:54.2]} 6... b6 {[%clk 0:03:00]}
7. c4 {[%clk 0:02:54.3]} 7... Bb7 {[%clk 0:03:00.5]} 8. Nbc3 {[%clk 0:02:54.6]}
8... Nbd7 {[%clk 0:03:00.9]} 9. b3 {[%clk 0:02:54.7]} 9... c5 {[%clk 0:02:59.8]}
10. cxd5 {[%clk 0:02:54.6]} 10... exd5 {[%clk 0:02:56.2]} 11. Bb2 {[%clk
0:02:54.5]} 11... Rc8 {[%clk 0:02:54.8]} 12. dxc5 {[%clk 0:02:50.6]} 12... Nxc5
{[%clk 0:02:54.2]} 13. Nf4 {[%clk 0:02:51.2]} 13... Nce4 {[%clk 0:02:51.3]} 14.
Ncxd5 {[%clk 0:02:45.5]} 14... Nxd5 {[%clk 0:02:47.1]} 15. Bxe4 {[%clk
0:02:45.5]} 15... Nxf4 {[%clk 0:02:20.9]} 16. Bxb7 {[%clk 0:02:41.1]} 16... Qxd1
{[%clk 0:01:35.8]} 17. Raxd1 {[%clk 0:02:42]} 17... Ne2+ {[%clk 0:01:29.4]} 18.
Kg2 {[%clk 0:02:42.1]} 18... Rc2 {[%clk 0:01:29.4]} 19. Ba1 {[%clk 0:02:42.2]}
19... Rxa2 {[%clk 0:01:26]} 20. Bf3 {[%clk 0:02:41.7]} 20... Bb4 {[%clk
0:01:21]} 21. Rd7 {[%clk 0:02:15.8]} 21... a5 {[%clk 0:01:18.4]} 22. Be5 {[%clk
0:02:06.1]} 22... Nc3 {[%clk 0:01:06]} 23. Rc1 {[%clk 0:02:04.2]} 23... Nb5
{[%clk 0:00:47.6]} 24. Bd5 {[%clk 0:02:02.6]} 24... Bd2 {[%clk 0:00:42]} 25.
Rxf7 {[%clk 0:02:01.9]} 25... Nc3 {[%clk 0:00:11.8]} 26. Rxg7+ {[%clk
0:01:53.7]} 26... Kh8 {[%clk 0:00:11.4]} 27. Rg8# {[%clk 0:01:54.6]} 1-0

[Event "Early-Titled-Tuesday-Blitz-February-27-2024"]
[Site "Chess.com"]
[Date "2024.02.27"]
[Round "4"]
[White "GodzillaChessYoutube"]
[Black "Defenstrator"]
[Result "1-0"]
[WhiteElo "2677"]
[BlackElo "2413"]
[TimeControl "180+1"]
[EndTime "8:35:55 PST"]
[Termination "GodzillaChessYoutube won by checkmate"]

1. d4 {[%clk 0:02:23.5]} 1... Nf6 {[%clk 0:02:57.6]} 2. Bf4 {[%clk 0:02:20]}
2... c6 {[%clk 0:02:51.9]} 3. e3 {[%clk 0:02:08.7]} 3... g5 {[%clk 0:02:51.8]}
4. Bg3 {[%clk 0:02:08.1]} 4... h5 {[%clk 0:02:51.4]} 5. f3 {[%clk 0:02:01.3]}
5... h4 {[%clk 0:02:46.3]} 6. Bf2 {[%clk 0:02:00.9]} 6... d5 {[%clk 0:02:42.7]}
7. h3 {[%clk 0:01:27.4]} 7... Bf5 {[%clk 0:02:36.9]} 8. Bd3 {[%clk 0:01:26]}
8... e6 {[%clk 0:02:32.8]} 9. Ne2 {[%clk 0:01:22.5]} 9... c5 {[%clk 0:02:31.1]}
10. Bxf5 {[%clk 0:01:20.6]} 10... exf5 {[%clk 0:02:31.2]} 11. dxc5 {[%clk
0:01:21]} 11... Bxc5 {[%clk 0:02:31.2]} 12. c3 {[%clk 0:01:19.6]} 12... g4
{[%clk 0:02:30.2]} 13. hxg4 {[%clk 0:01:14.7]} 13... fxg4 {[%clk 0:02:30.1]} 14.
Rxh4 {[%clk 0:01:03.1]} 14... Rxh4 {[%clk 0:02:24.8]} 15. Bxh4 {[%clk 0:01:04]}
15... gxf3 {[%clk 0:02:22.9]} 16. gxf3 {[%clk 0:00:56.3]} 16... Bxe3 {[%clk
0:02:21.7]} 17. Qd3 {[%clk 0:00:46.3]} 17... Bc1 {[%clk 0:02:14.2]} 18. Na3
{[%clk 0:00:38]} 18... Bh6 {[%clk 0:02:06.3]} 19. Nd4 {[%clk 0:00:17.9]} 19...
Nbd7 {[%clk 0:02:01.1]} 20. Nf5 {[%clk 0:00:18.4]} 20... Bf4 {[%clk 0:01:54.3]}
21. Qd4 {[%clk 0:00:18.6]} 21... Be5 {[%clk 0:01:51.4]} 22. Qb4 {[%clk
0:00:17.8]} 22... a5 {[%clk 0:01:40.2]} 23. Ng7# {[%clk 0:00:17.2]} 1-0

[Event "Early-Titled-Tuesday-Blitz-February-27-2024"]
[Site "Chess.com"]
[Date "2024.02.27"]
[Round "4"]
[White "Bkmzzzzz"]
[Black "DonCiao"]
[Result "1-0"]
[WhiteElo "2383"]
[BlackElo "2099"]
[TimeControl "180+1"]
[EndTime "8:35:55 PST"]
[Termination "Bkmzzzzz won by checkmate"]

1. e4 {[%clk 0:03:00.9]} 1... c5 {[%clk 0:02:58.3]} 2. Nf3 {[%clk 0:03:00.8]}
2... Nc6 {[%clk 0:02:58.3]} 3. Bb5 {[%clk 0:03:00]} 3... g6 {[%clk 0:02:58.2]}
4. O-O {[%clk 0:02:59.7]} 4... Bg7 {[%clk 0:02:58.2]} 5. c3 {[%clk 0:03:00.3]}
5... e5 {[%clk 0:02:57.1]} 6. b4 {[%clk 0:02:59.6]} 6... cxb4 {[%clk 0:02:50.1]}
7. d4 {[%clk 0:02:59.7]} 7... exd4 {[%clk 0:02:40.7]} 8. cxd4 {[%clk 0:02:47.9]}
8... Nge7 {[%clk 0:02:36]} 9. e5 {[%clk 0:02:40.1]} 9... O-O {[%clk 0:02:33.7]}
10. Nbd2 {[%clk 0:02:40]} 10... a6 {[%clk 0:02:23.5]} 11. Bxc6 {[%clk
0:02:10.6]} 11... bxc6 {[%clk 0:02:16.4]} 12. Ne4 {[%clk 0:02:07.1]} 12... Nd5
{[%clk 0:02:13.1]} 13. Nd6 {[%clk 0:02:04.6]} 13... h6 {[%clk 0:02:07.3]} 14.
Bd2 {[%clk 0:01:47.8]} 14... a5 {[%clk 0:02:05.4]} 15. Qc1 {[%clk 0:01:46.4]}
15... Kh7 {[%clk 0:02:03.3]} 16. Re1 {[%clk 0:01:46.5]} 16... Ba6 {[%clk
0:02:02.3]} 17. h3 {[%clk 0:01:39.6]} 17... Bd3 {[%clk 0:01:53.9]} 18. Nh2
{[%clk 0:01:39.1]} 18... Qh4 {[%clk 0:01:39.6]} 19. Ng4 {[%clk 0:01:29.3]} 19...
h5 {[%clk 0:01:33.7]} 20. Bg5 {[%clk 0:01:23.8]} 20... Bh6 {[%clk 0:01:13.1]}
21. Nxh6 {[%clk 0:01:20.4]} 21... Qxd4 {[%clk 0:01:12.2]} 22. Nhxf7 {[%clk
0:01:08.9]} 22... Nc3 {[%clk 0:01:09.2]} 23. Bf6 {[%clk 0:01:04.2]} 23... Ne2+
{[%clk 0:00:58.1]} 24. Rxe2 {[%clk 0:01:03.7]} 24... Bxe2 {[%clk 0:00:58.3]} 25.
Qh6+ {[%clk 0:01:03.2]} 25... Kg8 {[%clk 0:00:57.4]} 26. Qg7# {[%clk 0:01:03.9]}
1-0

[Event "Early-Titled-Tuesday-Blitz-February-27-2024"]
[Site "Chess.com"]
[Date "2024.02.27"]
[Round "4"]
[White "the_blue_pill"]
[Black "VinzentSpitzl"]
[Result "1-0"]
[WhiteElo "2409"]
[BlackElo "2525"]
[TimeControl "180+1"]
[EndTime "8:35:56 PST"]
[Termination "the_blue_pill won by resignation"]

1. Nf3 {[%clk 0:03:00.9]} 1... d5 {[%clk 0:02:59.7]} 2. e3 {[%clk 0:03:01.1]}
2... Nf6 {[%clk 0:03:00.1]} 3. c4 {[%clk 0:03:01.4]} 3... e6 {[%clk 0:03:00.3]}
4. Nc3 {[%clk 0:02:59.8]} 4... Be7 {[%clk 0:03:00.7]} 5. b3 {[%clk 0:02:54.9]}
5... O-O {[%clk 0:02:58.8]} 6. Bb2 {[%clk 0:02:54.9]} 6... c5 {[%clk 0:02:55.8]}
7. cxd5 {[%clk 0:02:54.7]} 7... exd5 {[%clk 0:02:52]} 8. d4 {[%clk 0:02:54.7]}
8... Nc6 {[%clk 0:02:49.3]} 9. dxc5 {[%clk 0:02:54.6]} 9... Bxc5 {[%clk
0:02:48.5]} 10. Be2 {[%clk 0:02:55.4]} 10... Bg4 {[%clk 0:02:46.7]} 11. O-O
{[%clk 0:02:54.8]} 11... d4 {[%clk 0:02:38.4]} 12. Na4 {[%clk 0:02:52.1]} 12...
Be7 {[%clk 0:02:22]} 13. Nxd4 {[%clk 0:02:48.7]} 13... Bxe2 {[%clk 0:02:19.2]}
14. Qxe2 {[%clk 0:02:35.4]} 14... Nxd4 {[%clk 0:02:17.7]} 15. Bxd4 {[%clk
0:02:34.5]} 15... b6 {[%clk 0:02:06.5]} 16. Nc3 {[%clk 0:02:32]} 16... Rc8
{[%clk 0:02:05.5]} 17. Rac1 {[%clk 0:02:30.8]} 17... Qd7 {[%clk 0:02:02.8]} 18.
Rfd1 {[%clk 0:02:29.7]} 18... Qb7 {[%clk 0:02:00]} 19. Qf3 {[%clk 0:02:17]}
19... Qxf3 {[%clk 0:01:47.8]} 20. gxf3 {[%clk 0:02:17.9]} 20... Ba3 {[%clk
0:01:46.7]} 21. Rb1 {[%clk 0:02:15.7]} 21... Rfd8 {[%clk 0:01:44.9]} 22. Bxf6
{[%clk 0:02:06.5]} 22... gxf6 {[%clk 0:01:44.5]} 23. Rxd8+ {[%clk 0:02:05]}
23... Rxd8 {[%clk 0:01:44.2]} 24. Rd1 {[%clk 0:02:05.2]} 24... Rc8 {[%clk
0:01:37.1]} 25. Nb5 {[%clk 0:01:59.8]} 25... Bc5 {[%clk 0:01:32.3]} 26. Nxa7
{[%clk 0:01:57.9]} 26... Ra8 {[%clk 0:01:31.2]} 27. Rd7 {[%clk 0:01:54.3]} 27...
b5 {[%clk 0:01:26.9]} 28. Nxb5 {[%clk 0:01:50.7]} 28... Rxa2 {[%clk 0:01:27]}
29. Nd6 {[%clk 0:01:39.9]} 29... Rb2 {[%clk 0:01:16.1]} 30. Nxf7 {[%clk
0:01:33.5]} 30... Rxb3 {[%clk 0:01:16.1]} 31. Nh6+ {[%clk 0:01:32.3]} 31... Kh8
{[%clk 0:01:16.5]} 32. Nf5 {[%clk 0:01:27.1]} 32... Bf8 {[%clk 0:01:14.6]} 33.
Rf7 {[%clk 0:01:13.6]} 33... Kg8 {[%clk 0:01:14.6]} 34. Rxf6 {[%clk 0:01:11.9]}
1-0

[Event "Early-Titled-Tuesday-Blitz-February-27-2024"]
[Site "Chess.com"]
[Date "2024.02.27"]
[Round "4"]
[White "Herman-NY"]
[Black "Supergiuly"]
[Result "1-0"]
[WhiteElo "2520"]
[BlackElo "2313"]
[TimeControl "180+1"]
[EndTime "8:36:01 PST"]
[Termination "Herman-NY won by resignation"]

1. e4 {[%clk 0:03:00.9]} 1... b6 {[%clk 0:02:45.8]} 2. d4 {[%clk 0:02:59.1]}
2... Bb7 {[%clk 0:02:44.6]} 3. Bd3 {[%clk 0:02:59.8]} 3... e6 {[%clk 0:02:41.5]}
4. Nf3 {[%clk 0:02:56.1]} 4... g6 {[%clk 0:02:38.8]} 5. O-O {[%clk 0:02:51.2]}
5... Bg7 {[%clk 0:02:38]} 6. Re1 {[%clk 0:02:50.8]} 6... Ne7 {[%clk 0:02:37.2]}
7. c4 {[%clk 0:02:48.6]} 7... O-O {[%clk 0:02:35.9]} 8. Nc3 {[%clk 0:02:43.3]}
8... d5 {[%clk 0:02:33.7]} 9. cxd5 {[%clk 0:02:40]} 9... exd5 {[%clk 0:02:34.6]}
10. e5 {[%clk 0:02:39.9]} 10... c5 {[%clk 0:02:32.6]} 11. Nb5 {[%clk 0:02:28.8]}
11... Nc8 {[%clk 0:02:17.8]} 12. Bg5 {[%clk 0:02:13.1]} 12... Qd7 {[%clk
0:02:12.1]} 13. a4 {[%clk 0:01:47.5]} 13... a6 {[%clk 0:02:07.6]} 14. Nc3 {[%clk
0:01:45.1]} 14... Nc6 {[%clk 0:02:03.9]} 15. Ne2 {[%clk 0:01:25.8]} 15... h6
{[%clk 0:01:57.9]} 16. Bf4 {[%clk 0:01:15]} 16... N8e7 {[%clk 0:01:55.1]} 17.
Qd2 {[%clk 0:01:13.1]} 17... Kh7 {[%clk 0:01:53]} 18. h4 {[%clk 0:01:12.2]}
18... Nf5 {[%clk 0:01:52.1]} 19. h5 {[%clk 0:01:07.3]} 19... g5 {[%clk
0:01:47.3]} 20. Ng3 {[%clk 0:01:07]} 20... Ne7 {[%clk 0:01:39.9]} 21. Nxf5
{[%clk 0:01:06.4]} 21... Nxf5 {[%clk 0:01:40.8]} 22. g4 {[%clk 0:01:06.2]} 22...
Kh8 {[%clk 0:01:15.5]} 23. Bxf5 {[%clk 0:01:05.2]} 23... Qe7 {[%clk 0:01:15.6]}
24. Bg3 {[%clk 0:01:01.3]} 24... Bc8 {[%clk 0:01:11.8]} 25. Qd3 {[%clk
0:00:59.4]} 25... c4 {[%clk 0:01:10.8]} 26. Qc2 {[%clk 0:00:59.4]} 26... b5
{[%clk 0:01:10.8]} 27. axb5 {[%clk 0:00:59.1]} 27... Bxf5 {[%clk 0:01:10.3]} 28.
gxf5 {[%clk 0:00:58.9]} 28... axb5 {[%clk 0:01:11.2]} 29. Rxa8 {[%clk
0:00:57.6]} 29... Rxa8 {[%clk 0:01:10.5]} 30. f6 {[%clk 0:00:57.8]} 1-0

[Event "Early-Titled-Tuesday-Blitz-February-27-2024"]
[Site "Chess.com"]
[Date "2024.02.27"]
[Round "4"]
[White "Alblooshi_Hamad"]
[Black "Keures"]
[Result "0-1"]
[WhiteElo "2159"]
[BlackElo "2369"]
[TimeControl "180+1"]
[EndTime "8:36:10 PST"]
[Termination "Keures won by checkmate"]

1. d4 {[%clk 0:03:00.9]} 1... f5 {[%clk 0:02:59.4]} 2. c4 {[%clk 0:03:01]} 2...
e6 {[%clk 0:02:58]} 3. Nc3 {[%clk 0:03:01.5]} 3... Nf6 {[%clk 0:02:58.3]} 4. g3
{[%clk 0:03:01.1]} 4... Be7 {[%clk 0:02:57.9]} 5. Bg2 {[%clk 0:03:01.5]} 5...
O-O {[%clk 0:02:58.2]} 6. Nf3 {[%clk 0:02:59.3]} 6... d6 {[%clk 0:02:58.3]} 7.
O-O {[%clk 0:02:59.6]} 7... Ne4 {[%clk 0:02:57.1]} 8. Qc2 {[%clk 0:02:56.3]}
8... Nxc3 {[%clk 0:02:57]} 9. Qxc3 {[%clk 0:02:53.2]} 9... a5 {[%clk 0:02:57]}
10. a3 {[%clk 0:02:46.3]} 10... Bf6 {[%clk 0:02:42.8]} 11. h4 {[%clk 0:02:39]}
11... h6 {[%clk 0:02:40.9]} 12. Rb1 {[%clk 0:02:37.4]} 12... a4 {[%clk
0:02:39.1]} 13. Re1 {[%clk 0:02:30.6]} 13... Nc6 {[%clk 0:02:33.5]} 14. Bd2
{[%clk 0:02:29.7]} 14... e5 {[%clk 0:02:29.5]} 15. dxe5 {[%clk 0:02:26.4]} 15...
dxe5 {[%clk 0:02:29.1]} 16. e4 {[%clk 0:02:24.8]} 16... f4 {[%clk 0:02:23.5]}
17. Rbd1 {[%clk 0:02:08.8]} 17... Qe8 {[%clk 0:02:23]} 18. Qc2 {[%clk
0:01:43.2]} 18... Qh5 {[%clk 0:02:21.6]} 19. Bb4 {[%clk 0:01:40.8]} 19... Nxb4
{[%clk 0:02:19.4]} 20. axb4 {[%clk 0:01:41.2]} 20... Bg4 {[%clk 0:02:20]} 21.
Qc3 {[%clk 0:01:38.7]} 21... fxg3 {[%clk 0:02:15.3]} 22. fxg3 {[%clk 0:01:36.1]}
22... Bxh4 {[%clk 0:02:12.9]} 23. gxh4 {[%clk 0:01:29.4]} 23... Bxf3 {[%clk
0:02:12.5]} 24. Rd3 {[%clk 0:01:11.7]} 24... Bxg2 {[%clk 0:02:01.6]} 25. Kxg2
{[%clk 0:01:12.6]} 25... Qxh4 {[%clk 0:01:59.6]} 26. Rg3 {[%clk 0:01:11.2]}
26... Qf4 {[%clk 0:01:53.9]} 27. c5 {[%clk 0:00:40.1]} 27... Rad8 {[%clk
0:01:48.6]} 28. Ree3 {[%clk 0:00:25.8]} 28... Qf1+ {[%clk 0:01:43.1]} 29. Kh2
{[%clk 0:00:19.8]} 29... Rf2+ {[%clk 0:01:41.6]} 30. Rg2 {[%clk 0:00:19.8]}
30... Qxg2# {[%clk 0:01:41.2]} 0-1